[Event "January 2 Early 2024"]
[Site "https://www.chess.com"]
[Date "2024.01.02"]
[Round "8"]
[White "Babayeva, Nasrin"]
[Black "Refrigerator1955"]
[Result "0-1"]
[Board "192"]
[TimeControl "180+1"]
[WhiteFideId "13416626"]
[WhiteElo "1801"]
[BlackElo "2012"]
[WhiteTeam "AZE"]
[WhiteClock "0:01:16"]
[BlackClock "0:02:06"]

1. c4 {[%clk 0:02:49]}  c6 {[%clk 0:02:59]} 2. g3 {[%clk 0:02:49]}  d5 {[%clk 0:02:59]} 3. Bg2 {[%clk 0:02:44]}  Nf6 {[%clk 0:02:59]} 4. Nf3 {[%clk 0:02:28]}  g6 {[%clk 0:02:52]} 5. b3 {[%clk 0:02:18]}  Bg7 {[%clk 0:02:50]} 6. Bb2 {[%clk 0:02:17]}  O-O {[%clk 0:02:50]} 7. O-O {[%clk 0:02:17]}  Nbd7 {[%clk 0:02:40]} 8. Qc2 {[%clk 0:02:11]}  Re8 {[%clk 0:02:35]} 9. d4 {[%clk 0:02:11]}  Ne4 {[%clk 0:02:32]} 10. Nc3 {[%clk 0:02:03]}  Ndf6 {[%clk 0:02:30]} 11. Ne5 {[%clk 0:01:46]}  Bf5 {[%clk 0:02:21]} 12. f3 {[%clk 0:01:16]}  Nxg3 {[%clk 0:02:06]} 0-1

[Event "January 2 Early 2024"]
[Site "https://www.chess.com"]
[Date "2024.01.02"]
[Round "8"]
[White "Petersson, Kjell"]
[Black "Pein, Jonathan"]
[Result "0-1"]
[Board "195"]
[TimeControl "180+1"]
[WhiteFideId "1705148"]
[BlackFideId "417092"]
[WhiteElo "2139"]
[BlackElo "2360"]
[WhiteTeam "SWE"]
[BlackTeam "ENG"]
[WhiteClock "0:01:44"]
[BlackClock "0:00:35"]

1. d4 {[%clk 0:03:00]}  d5 {[%clk 0:02:54]} 2. Bf4 {[%clk 0:03:01]}  Bf5 {[%clk 0:02:47]} 3. e3 {[%clk 0:03:01]}  c6 {[%clk 0:02:42]} 4. Bd3 {[%clk 0:03:00]}  Bg6 {[%clk 0:02:39]} 5. h4 {[%clk 0:02:54]}  Nf6 {[%clk 0:02:33]} 6. h5 {[%clk 0:02:52]}  Bxd3 {[%clk 0:02:30]} 7. Qxd3 {[%clk 0:02:50]}  h6 {[%clk 0:02:30]} 8. Nf3 {[%clk 0:02:45]}  e6 {[%clk 0:02:30]} 9. Ne5 {[%clk 0:02:43]}  Nbd7 {[%clk 0:02:31]} 10. Nd2 {[%clk 0:02:42]}  Nxe5 {[%clk 0:02:30]} 11. Bxe5 {[%clk 0:02:42]}  Bd6 {[%clk 0:02:31]} 12. Nf3 {[%clk 0:02:42]}  a6 {[%clk 0:02:27]} 13. Rg1 {[%clk 0:02:36]}  Bxe5 {[%clk 0:02:21]} 14. Nxe5 {[%clk 0:02:35]}  Nd7 {[%clk 0:02:22]} 15. O-O-O {[%clk 0:02:25]}  Nxe5 {[%clk 0:02:22]} 16. dxe5 {[%clk 0:02:26]}  Qg5 {[%clk 0:02:18]} 17. f4 {[%clk 0:02:22]}  Qxh5 {[%clk 0:02:11]} 18. g4 {[%clk 0:02:23]}  Qh4 {[%clk 0:02:11]} 19. f5 {[%clk 0:02:21]}  O-O-O {[%clk 0:02:08]} 20. Qd4 {[%clk 0:02:09]}  Kb8 {[%clk 0:01:55]} 21. Rd3 {[%clk 0:02:03]}  Qf2 {[%clk 0:01:34]} 22. Rgd1 {[%clk 0:01:57]}  exf5 {[%clk 0:01:34]} 23. Rb3 {[%clk 0:01:55]}  f4 {[%clk 0:00:41]} 24. Qb6 {[%clk 0:01:54]}  Rd7 {[%clk 0:00:41]} 25. Qxc6 {[%clk 0:01:52]}  Rc7 {[%clk 0:00:36]} 26. Qxa6 {[%clk 0:01:44]}  Qxc2# {[%clk 0:00:35]} 0-1

[Event "January 2 Early 2024"]
[Site "https://www.chess.com"]
[Date "2024.01.02"]
[Round "8"]
[White "Todev, Simeon"]
[Black "Viana, Valeria"]
[Result "1-0"]
[Board "196"]
[TimeControl "180+1"]
[WhiteFideId "2925133"]
[BlackFideId "8407100"]
[WhiteElo "2355"]
[BlackElo "2120"]
[WhiteTeam "BUL"]
[BlackTeam "HON"]
[WhiteClock "0:00:24"]
[BlackClock "0:00:00"]

1. e4 {[%clk 0:03:00]}  c6 {[%clk 0:02:59]} 2. d4 {[%clk 0:02:56]}  d5 {[%clk 0:02:59]} 3. Nc3 {[%clk 0:02:57]}  dxe4 {[%clk 0:02:58]} 4. Nxe4 {[%clk 0:02:58]}  Bf5 {[%clk 0:02:58]} 5. Ng3 {[%clk 0:02:59]}  Bg6 {[%clk 0:02:58]} 6. h4 {[%clk 0:02:59]}  h6 {[%clk 0:02:58]} 7. Nf3 {[%clk 0:02:38]}  Nd7 {[%clk 0:02:57]} 8. Bc4 {[%clk 0:02:35]}  e6 {[%clk 0:02:57]} 9. h5 {[%clk 0:02:30]}  Bh7 {[%clk 0:02:52]} 10. O-O {[%clk 0:02:30]}  Ngf6 {[%clk 0:02:51]} 11. Re1 {[%clk 0:02:28]}  Be7 {[%clk 0:02:50]} 12. Be3 {[%clk 0:02:26]}  O-O {[%clk 0:02:47]} 13. Qd2 {[%clk 0:02:23]}  Nb6 {[%clk 0:02:09]} 14. Bb3 {[%clk 0:02:19]}  Ng4 {[%clk 0:01:48]} 15. c3 {[%clk 0:02:12]}  Nxe3 {[%clk 0:01:48]} 16. Qxe3 {[%clk 0:02:12]}  Nd5 {[%clk 0:01:46]} 17. Qd2 {[%clk 0:02:10]}  Rc8 {[%clk 0:01:26]} 18. Rad1 {[%clk 0:02:01]}  Nf6 {[%clk 0:01:21]} 19. Ne5 {[%clk 0:02:00]}  Qb6 {[%clk 0:01:11]} 20. Qf4 {[%clk 0:01:51]}  Nd5 {[%clk 0:01:06]} 21. Bxd5 {[%clk 0:01:50]}  cxd5 {[%clk 0:01:03]} 22. Nd7 {[%clk 0:01:50]}  Bd6 {[%clk 0:00:55]} 23. Qg4 {[%clk 0:01:43]}  Qc7 {[%clk 0:00:51]} 24. Nxf8 {[%clk 0:01:42]}  Rxf8 {[%clk 0:00:51]} 25. Re3 {[%clk 0:01:40]}  e5 {[%clk 0:00:32]} 26. dxe5 {[%clk 0:01:35]}  Bxe5 {[%clk 0:00:28]} 27. Rxd5 {[%clk 0:01:35]}  Bf4 {[%clk 0:00:25]} 28. Rf3 {[%clk 0:01:32]}  Bg5 {[%clk 0:00:25]} 29. Ne4 {[%clk 0:01:25]}  Bxe4 {[%clk 0:00:24]} 30. Qxe4 {[%clk 0:01:25]}  Bf6 {[%clk 0:00:20]} 31. Rdf5 {[%clk 0:01:22]}  Qb6 {[%clk 0:00:16]} 32. Qg4 {[%clk 0:01:11]}  Kh8 {[%clk 0:00:14]} 33. Qf4 {[%clk 0:01:06]}  Kh7 {[%clk 0:00:13]} 34. Rg3 {[%clk 0:00:53]}  Bg5 {[%clk 0:00:11]} 35. Qe4 {[%clk 0:00:48]}  Kg8 {[%clk 0:00:10]} 36. Kh1 {[%clk 0:00:45]}  Rd8 {[%clk 0:00:08]} 37. Rd3 {[%clk 0:00:39]}  Rf8 {[%clk 0:00:07]} 38. Qd5 {[%clk 0:00:30]}  Qxb2 {[%clk 0:00:06]} 39. Rdf3 {[%clk 0:00:26]}  Qc1+ {[%clk 0:00:06]} 40. Kh2 {[%clk 0:00:25]}  Qxc3 {[%clk 0:00:00]} 41. Rxc3 {[%clk 0:00:24]} 1-0

[Event "January 2 Early 2024"]
[Site "https://www.chess.com"]
[Date "2024.01.02"]
[Round "8"]
[White "Gaboyan, Susanna"]
[Black "Zepeda Berlanga, Jan Enrique"]
[Result "1-0"]
[Board "197"]
[TimeControl "180+1"]
[WhiteFideId "13303627"]
[BlackFideId "5132355"]
[WhiteElo "2321"]
[BlackElo "1952"]
[WhiteTeam "ARM"]
[BlackTeam "MEX"]
[WhiteClock "0:00:19"]
[BlackClock "0:00:00"]

1. e4 {[%clk 0:02:51]}  c5 {[%clk 0:02:59]} 2. Nc3 {[%clk 0:02:43]}  d6 {[%clk 0:02:53]} 3. g3 {[%clk 0:02:41]}  Nf6 {[%clk 0:02:54]} 4. Bg2 {[%clk 0:02:41]}  g6 {[%clk 0:02:52]} 5. Nge2 {[%clk 0:02:41]}  Bg7 {[%clk 0:02:52]} 6. O-O {[%clk 0:02:41]}  O-O {[%clk 0:02:53]} 7. d3 {[%clk 0:02:42]}  Nc6 {[%clk 0:02:53]} 8. f4 {[%clk 0:02:42]}  e6 {[%clk 0:02:54]} 9. Be3 {[%clk 0:02:39]}  a6 {[%clk 0:02:49]} 10. Qd2 {[%clk 0:02:38]}  b5 {[%clk 0:02:47]} 11. f5 {[%clk 0:02:30]}  d5 {[%clk 0:02:32]} 12. exd5 {[%clk 0:02:20]}  exd5 {[%clk 0:02:27]} 13. fxg6 {[%clk 0:02:20]}  hxg6 {[%clk 0:02:18]} 14. Rxf6 {[%clk 0:02:08]}  Bxf6 {[%clk 0:01:59]} 15. Bxc5 {[%clk 0:01:57]}  Be7 {[%clk 0:01:40]} 16. Bxe7 {[%clk 0:01:14]}  Nxe7 {[%clk 0:01:37]} 17. Qg5 {[%clk 0:00:59]}  Bb7 {[%clk 0:01:23]} 18. Nf4 {[%clk 0:00:51]}  f6 {[%clk 0:01:09]} 19. Qg4 {[%clk 0:00:41]}  Qb6+ {[%clk 0:00:56]} 20. Kh1 {[%clk 0:00:40]}  f5 {[%clk 0:00:37]} 21. Qg5 {[%clk 0:00:39]}  Rae8 {[%clk 0:00:21]} 22. Re1 {[%clk 0:00:22]}  Qd6 {[%clk 0:00:11]} 23. Re6 {[%clk 0:00:19]}  Nc6 {[%clk 0:00:01]} 24. Rxd6 {[%clk 0:00:18]}  Re1+ {[%clk 0:00:00]} 25. Bf1 {[%clk 0:00:19]} 1-0

[Event "January 2 Early 2024"]
[Site "https://www.chess.com"]
[Date "2024.01.02"]
[Round "9"]
[White "Nakamura, Hikaru"]
[Black "Mamedyarov, Shakhriyar"]
[Result "1/2-1/2"]
[Board "1"]
[TimeControl "180+1"]
[WhiteFideId "2016192"]
[BlackFideId "13401319"]
[WhiteElo "3239"]
[BlackElo "3088"]
[WhiteTeam "USA"]
[BlackTeam "AZE"]
[WhiteClock "0:00:12"]
[BlackClock "0:00:14"]

1. g3 {[%clk 0:03:00]}  Nf6 {[%clk 0:02:58]} 2. Bg2 {[%clk 0:03:00]}  g6 {[%clk 0:02:59]} 3. e4 {[%clk 0:03:00]}  e5 {[%clk 0:02:58]} 4. d4 {[%clk 0:02:50]}  exd4 {[%clk 0:02:58]} 5. Ne2 {[%clk 0:02:50]}  d6 {[%clk 0:02:57]} 6. Nxd4 {[%clk 0:02:49]}  Bg7 {[%clk 0:02:57]} 7. O-O {[%clk 0:02:49]}  O-O {[%clk 0:02:58]} 8. Nc3 {[%clk 0:02:47]}  Re8 {[%clk 0:02:58]} 9. Re1 {[%clk 0:02:47]}  Nbd7 {[%clk 0:02:58]} 10. b3 {[%clk 0:02:43]}  Nc5 {[%clk 0:02:56]} 11. Bb2 {[%clk 0:02:41]}  c6 {[%clk 0:02:55]} 12. Qd2 {[%clk 0:02:39]}  a5 {[%clk 0:02:49]} 13. Rad1 {[%clk 0:02:34]}  a4 {[%clk 0:02:37]} 14. h3 {[%clk 0:02:31]}  axb3 {[%clk 0:02:35]} 15. axb3 {[%clk 0:02:25]}  Qe7 {[%clk 0:02:32]} 16. Re3 {[%clk 0:02:07]}  h5 {[%clk 0:02:30]} 17. f4 {[%clk 0:02:05]}  d5 {[%clk 0:02:20]} 18. e5 {[%clk 0:01:55]}  Nfe4 {[%clk 0:02:20]} 19. Qe1 {[%clk 0:01:52]}  Nxc3 {[%clk 0:02:17]} 20. Bxc3 {[%clk 0:01:51]}  Ne4 {[%clk 0:02:18]} 21. Ra1 {[%clk 0:01:25]}  Rxa1 {[%clk 0:02:10]} 22. Bxa1 {[%clk 0:01:26]}  Bd7 {[%clk 0:02:06]} 23. Nf3 {[%clk 0:01:18]}  Ra8 {[%clk 0:02:03]} 24. Bd4 {[%clk 0:01:19]}  Ra2 {[%clk 0:01:57]} 25. Re2 {[%clk 0:01:02]}  c5 {[%clk 0:01:52]} 26. Be3 {[%clk 0:01:03]}  d4 {[%clk 0:01:42]} 27. Bxd4 {[%clk 0:01:03]}  Nxg3 {[%clk 0:01:24]} 28. Qxg3 {[%clk 0:01:01]}  cxd4 {[%clk 0:01:25]} 29. Nxd4 {[%clk 0:01:02]}  Qc5 {[%clk 0:01:25]} 30. Qe3 {[%clk 0:01:01]}  b5 {[%clk 0:01:12]} 31. Kh2 {[%clk 0:00:58]}  b4 {[%clk 0:01:11]} 32. Be4 {[%clk 0:00:58]}  Bh6 {[%clk 0:01:07]} 33. Bd3 {[%clk 0:00:50]}  Ra1 {[%clk 0:00:59]} 34. e6 {[%clk 0:00:48]}  Bxe6 {[%clk 0:00:42]} 35. Nxe6 {[%clk 0:00:47]}  Qxe3 {[%clk 0:00:42]} 36. Rxe3 {[%clk 0:00:47]}  fxe6 {[%clk 0:00:43]} 37. Rxe6 {[%clk 0:00:44]}  Bxf4+ {[%clk 0:00:43]} 38. Kg2 {[%clk 0:00:45]}  g5 {[%clk 0:00:44]} 39. Re7 {[%clk 0:00:40]}  Rd1 {[%clk 0:00:35]} 40. Rb7 {[%clk 0:00:35]}  Rd2+ {[%clk 0:00:33]} 41. Kf3 {[%clk 0:00:34]}  Rh2 {[%clk 0:00:33]} 42. Bf5 {[%clk 0:00:32]}  Bd2 {[%clk 0:00:32]} 43. Ke4 {[%clk 0:00:30]}  Rf2 {[%clk 0:00:27]} 44. Be6+ {[%clk 0:00:24]}  Kf8 {[%clk 0:00:27]} 45. Rh7 {[%clk 0:00:25]}  g4 {[%clk 0:00:21]} 46. hxg4 {[%clk 0:00:26]}  hxg4 {[%clk 0:00:22]} 47. Bxg4 {[%clk 0:00:25]}  Rf4+ {[%clk 0:00:20]} 48. Kd3 {[%clk 0:00:26]}  Bc3 {[%clk 0:00:17]} 49. Be6 {[%clk 0:00:25]}  Rd4+ {[%clk 0:00:17]} 50. Ke3 {[%clk 0:00:25]}  Rd6 {[%clk 0:00:18]} 51. Bc4 {[%clk 0:00:25]}  Ke8 {[%clk 0:00:18]} 52. Ke4 {[%clk 0:00:24]}  Kd8 {[%clk 0:00:19]} 53. Bd5 {[%clk 0:00:24]}  Rd7 {[%clk 0:00:19]} 54. Rh6 {[%clk 0:00:24]}  Re7+ {[%clk 0:00:19]} 55. Kd3 {[%clk 0:00:24]}  Kc7 {[%clk 0:00:20]} 56. Kc4 {[%clk 0:00:24]}  Rd7 {[%clk 0:00:21]} 57. Rc6+ {[%clk 0:00:19]}  Kd8 {[%clk 0:00:21]} 58. Ra6 {[%clk 0:00:18]}  Rc7+ {[%clk 0:00:20]} 59. Bc6 {[%clk 0:00:19]}  Ke7 {[%clk 0:00:20]} 60. Kd5 {[%clk 0:00:18]}  Rc8 {[%clk 0:00:19]} 61. Ra7+ {[%clk 0:00:19]}  Kf6 {[%clk 0:00:20]} 62. Rb7 {[%clk 0:00:18]}  Rd8+ {[%clk 0:00:19]} 63. Bd7 {[%clk 0:00:19]}  Ke7 {[%clk 0:00:19]} 64. Kc6 {[%clk 0:00:19]}  Kf6 {[%clk 0:00:20]} 65. Rb5 {[%clk 0:00:18]}  Rh8 {[%clk 0:00:19]} 66. Rf5+ {[%clk 0:00:18]}  Ke7 {[%clk 0:00:20]} 67. Kc7 {[%clk 0:00:07]}  Rh2 {[%clk 0:00:18]} 68. Bb5 {[%clk 0:00:06]}  Rxc2 {[%clk 0:00:18]} 69. Bc4 {[%clk 0:00:07]}  Rd2 {[%clk 0:00:15]} 70. Rf7+ {[%clk 0:00:07]}  Ke8 {[%clk 0:00:16]} 71. Rh7 {[%clk 0:00:08]}  Kf8 {[%clk 0:00:15]} 72. Kc6 {[%clk 0:00:06]}  Bg7 {[%clk 0:00:14]} 73. Bd5 {[%clk 0:00:05]}  Rd1 {[%clk 0:00:12]} 74. Kd6 {[%clk 0:00:05]}  Re1 {[%clk 0:00:11]} 75. Rh5 {[%clk 0:00:05]}  Bf6 {[%clk 0:00:10]} 76. Rh3 {[%clk 0:00:04]}  Bc3 {[%clk 0:00:10]} 77. Rh4 {[%clk 0:00:03]}  Kg7 {[%clk 0:00:10]} 78. Rg4+ {[%clk 0:00:03]}  Kf6 {[%clk 0:00:10]} 79. Be4 {[%clk 0:00:03]}  Be5+ {[%clk 0:00:10]} 80. Kd5 {[%clk 0:00:03]}  Rd1+ {[%clk 0:00:09]} 81. Kc5 {[%clk 0:00:04]}  Rd4 {[%clk 0:00:07]} 82. Rg6+ {[%clk 0:00:04]}  Kf7 {[%clk 0:00:08]} 83. Rg4 {[%clk 0:00:05]}  Kf6 {[%clk 0:00:08]} 84. Rg6+ {[%clk 0:00:05]}  Kf7 {[%clk 0:00:08]} 85. Bf5 {[%clk 0:00:05]}  Rf4 {[%clk 0:00:07]} 86. Bd3 {[%clk 0:00:06]}  Bc3 {[%clk 0:00:08]} 87. Rg3 {[%clk 0:00:05]}  Rf6 {[%clk 0:00:09]} 88. Bc4+ {[%clk 0:00:05]}  Ke7 {[%clk 0:00:09]} 89. Rg7+ {[%clk 0:00:05]}  Kf8 {[%clk 0:00:09]} 90. Rh7 {[%clk 0:00:06]}  Rg6 {[%clk 0:00:10]} 91. Bd5 {[%clk 0:00:05]}  Rg7 {[%clk 0:00:10]} 92. Rh4 {[%clk 0:00:05]}  Ke7 {[%clk 0:00:10]} 93. Rf4 {[%clk 0:00:05]}  Rh7 {[%clk 0:00:09]} 94. Rf5 {[%clk 0:00:05]}  Rg7 {[%clk 0:00:10]} 95. Kc6 {[%clk 0:00:04]}  Rh7 {[%clk 0:00:10]} 96. Bc4 {[%clk 0:00:03]}  Rh6+ {[%clk 0:00:10]} 97. Kb5 {[%clk 0:00:03]}  Rh7 {[%clk 0:00:10]} 98. Rc5 {[%clk 0:00:04]}  Rg7 {[%clk 0:00:10]} 99. Rc7+ {[%clk 0:00:04]}  Kf6 {[%clk 0:00:11]} 100. Rc6+ {[%clk 0:00:05]}  Ke5 {[%clk 0:00:10]} 101. Rc5+ {[%clk 0:00:05]}  Kd4 {[%clk 0:00:10]} 102. Rd5+ {[%clk 0:00:06]}  Ke4 {[%clk 0:00:10]} 103. Rd8 {[%clk 0:00:06]}  Kf4 {[%clk 0:00:11]} 104. Bd3 {[%clk 0:00:06]}  Rg5+ {[%clk 0:00:11]} 105. Kc4 {[%clk 0:00:06]}  Re5 {[%clk 0:00:11]} 106. Rf8+ {[%clk 0:00:06]}  Ke3 {[%clk 0:00:11]} 107. Bg6 {[%clk 0:00:07]}  Re6 {[%clk 0:00:10]} 108. Re8 {[%clk 0:00:07]}  Rxe8 {[%clk 0:00:10]} 109. Bxe8 {[%clk 0:00:08]}  Ke4 {[%clk 0:00:11]} 110. Ba4 {[%clk 0:00:09]}  Ke3 {[%clk 0:00:12]} 111. Bb5 {[%clk 0:00:09]}  Ke4 {[%clk 0:00:12]} 112. Ba4 {[%clk 0:00:10]}  Ke3 {[%clk 0:00:13]} 113. Bb5 {[%clk 0:00:11]}  Ke4 {[%clk 0:00:14]} 114. Ba4 {[%clk 0:00:12]} 1/2-1/2

[Event "January 2 Early 2024"]
[Site "https://www.chess.com"]
[Date "2024.01.02"]
[Round "9"]
[White "Duda, Jan-Krzysztof"]
[Black "Firouzja, Alireza"]
[Result "1-0"]
[Board "3"]
[TimeControl "180+1"]
[WhiteFideId "1170546"]
[BlackFideId "12573981"]
[WhiteElo "3049"]
[BlackElo "3161"]
[WhiteTeam "POL"]
[BlackTeam "FRA"]
[WhiteClock "0:00:09"]
[BlackClock "0:00:00"]

1. Nf3 {[%clk 0:03:00]}  Nf6 {[%clk 0:02:59]} 2. c4 {[%clk 0:03:00]}  g6 {[%clk 0:02:59]} 3. Nc3 {[%clk 0:03:00]}  Bg7 {[%clk 0:03:00]} 4. e4 {[%clk 0:03:00]}  d6 {[%clk 0:03:01]} 5. d4 {[%clk 0:03:01]}  O-O {[%clk 0:03:01]} 6. Be2 {[%clk 0:03:01]}  e5 {[%clk 0:03:02]} 7. O-O {[%clk 0:03:02]}  Na6 {[%clk 0:03:02]} 8. Re1 {[%clk 0:03:01]}  Bg4 {[%clk 0:03:02]} 9. Be3 {[%clk 0:02:52]}  Bxf3 {[%clk 0:03:02]} 10. Bxf3 {[%clk 0:02:53]}  exd4 {[%clk 0:03:03]} 11. Bxd4 {[%clk 0:02:54]}  c6 {[%clk 0:03:03]} 12. Qd2 {[%clk 0:02:52]}  Nc5 {[%clk 0:02:20]} 13. Rad1 {[%clk 0:02:51]}  Ne6 {[%clk 0:02:20]} 14. Be3 {[%clk 0:02:51]}  Qa5 {[%clk 0:02:20]} 15. Qxd6 {[%clk 0:02:21]}  Rfd8 {[%clk 0:02:19]} 16. Qe7 {[%clk 0:02:20]}  Qa6 {[%clk 0:01:38]} 17. Be2 {[%clk 0:01:49]}  Re8 {[%clk 0:01:14]} 18. Qb4 {[%clk 0:01:46]}  c5 {[%clk 0:00:45]} 19. Qb3 {[%clk 0:01:38]}  Rad8 {[%clk 0:00:28]} 20. e5 {[%clk 0:01:32]}  Nd7 {[%clk 0:00:27]} 21. f4 {[%clk 0:01:29]}  Nd4 {[%clk 0:00:27]} 22. Bxd4 {[%clk 0:01:21]}  cxd4 {[%clk 0:00:28]} 23. Nd5 {[%clk 0:00:59]}  Nc5 {[%clk 0:00:27]} 24. Qb4 {[%clk 0:00:53]}  Ne6 {[%clk 0:00:23]} 25. Bg4 {[%clk 0:00:49]}  Bf8 {[%clk 0:00:19]} 26. Qb3 {[%clk 0:00:38]}  Nc5 {[%clk 0:00:06]} 27. Qh3 {[%clk 0:00:33]}  Kg7 {[%clk 0:00:05]} 28. Nf6 {[%clk 0:00:27]}  h6 {[%clk 0:00:05]} 29. b4 {[%clk 0:00:18]}  Na4 {[%clk 0:00:04]} 30. Nxe8+ {[%clk 0:00:16]}  Rxe8 {[%clk 0:00:04]} 31. c5 {[%clk 0:00:17]}  Rd8 {[%clk 0:00:02]} 32. e6 {[%clk 0:00:11]}  Nc3 {[%clk 0:00:01]} 33. Rd2 {[%clk 0:00:11]}  f5 {[%clk 0:00:01]} 34. Bxf5 {[%clk 0:00:11]}  Be7 {[%clk 0:00:00]} 35. Bxg6 {[%clk 0:00:09]} 1-0

[Event "January 2 Early 2024"]
[Site "https://www.chess.com"]
[Date "2024.01.02"]
[Round "9"]
[White "Movahed, Sina"]
[Black "Bindrich, Falko"]
[Result "1-0"]
[Board "7"]
[TimeControl "180+1"]
[WhiteFideId "42520835"]
[BlackFideId "4676670"]
[WhiteElo "3010"]
[BlackElo "2836"]
[WhiteTeam "IRI"]
[BlackTeam "GER"]
[WhiteClock "0:01:07"]
[BlackClock "0:00:04"]

1. Nf3 {[%clk 0:03:00]}  d5 {[%clk 0:02:59]} 2. c4 {[%clk 0:03:00]}  e6 {[%clk 0:02:59]} 3. g3 {[%clk 0:03:01]}  Nf6 {[%clk 0:02:59]} 4. Bg2 {[%clk 0:03:01]}  dxc4 {[%clk 0:02:56]} 5. Qa4+ {[%clk 0:02:59]}  c6 {[%clk 0:02:56]} 6. Qxc4 {[%clk 0:02:59]}  b5 {[%clk 0:02:57]} 7. Qc2 {[%clk 0:02:59]}  Bb7 {[%clk 0:02:58]} 8. a4 {[%clk 0:02:54]}  b4 {[%clk 0:02:46]} 9. Ne5 {[%clk 0:02:47]}  Qd4 {[%clk 0:02:07]} 10. Nc4 {[%clk 0:02:39]}  Qd7 {[%clk 0:01:57]} 11. Na5 {[%clk 0:02:35]}  Be7 {[%clk 0:01:57]} 12. O-O {[%clk 0:02:34]}  O-O {[%clk 0:01:57]} 13. Nxb7 {[%clk 0:02:33]}  Qxb7 {[%clk 0:01:57]} 14. b3 {[%clk 0:02:33]}  Rc8 {[%clk 0:01:50]} 15. Bb2 {[%clk 0:02:33]}  Nd5 {[%clk 0:01:48]} 16. d3 {[%clk 0:02:24]}  c5 {[%clk 0:01:39]} 17. Nd2 {[%clk 0:02:24]}  Nc6 {[%clk 0:01:40]} 18. e3 {[%clk 0:02:23]}  Qd7 {[%clk 0:01:21]} 19. Rac1 {[%clk 0:02:20]}  Rab8 {[%clk 0:01:21]} 20. h4 {[%clk 0:02:13]}  Na5 {[%clk 0:01:17]} 21. Nc4 {[%clk 0:02:09]}  Nc6 {[%clk 0:01:17]} 22. Rfd1 {[%clk 0:02:07]}  Bf6 {[%clk 0:01:15]} 23. Bxf6 {[%clk 0:01:49]}  Nxf6 {[%clk 0:01:16]} 24. Nd2 {[%clk 0:01:50]}  Na5 {[%clk 0:01:08]} 25. Ne4 {[%clk 0:01:48]}  Nxe4 {[%clk 0:00:53]} 26. Bxe4 {[%clk 0:01:46]}  h6 {[%clk 0:00:44]} 27. Qb2 {[%clk 0:01:41]}  Qe7 {[%clk 0:00:42]} 28. Rc2 {[%clk 0:01:40]}  Qf6 {[%clk 0:00:39]} 29. Qb1 {[%clk 0:01:39]}  g5 {[%clk 0:00:36]} 30. hxg5 {[%clk 0:01:37]}  hxg5 {[%clk 0:00:37]} 31. Kg2 {[%clk 0:01:36]}  Kg7 {[%clk 0:00:37]} 32. Rh1 {[%clk 0:01:37]}  Qe5 {[%clk 0:00:30]} 33. Rh7+ {[%clk 0:01:35]}  Kg8 {[%clk 0:00:30]} 34. f4 {[%clk 0:01:26]}  Qf6 {[%clk 0:00:26]} 35. fxg5 {[%clk 0:01:18]}  Qxg5 {[%clk 0:00:26]} 36. Qb2 {[%clk 0:01:15]}  e5 {[%clk 0:00:20]} 37. Rf2 {[%clk 0:01:14]}  Rf8 {[%clk 0:00:15]} 38. Rf5 {[%clk 0:01:08]}  Qxe3 {[%clk 0:00:04]} 39. Qxe5 {[%clk 0:01:07]} 1-0

[Event "January 2 Early 2024"]
[Site "https://www.chess.com"]
[Date "2024.01.02"]
[Round "9"]
[White "Martinez Alcantara, Jose Eduardo"]
[Black "Praggnanandhaa R"]
[Result "0-1"]
[Board "9"]
[TimeControl "180+1"]
[WhiteFideId "3805662"]
[BlackFideId "25059530"]
[WhiteElo "3052"]
[BlackElo "2942"]
[WhiteTeam "PER"]
[BlackTeam "IND"]
[WhiteClock "0:00:07"]
[BlackClock "0:00:17"]

1. e4 {[%clk 0:03:00]}  c5 {[%clk 0:02:57]} 2. Nf3 {[%clk 0:03:01]}  Nc6 {[%clk 0:02:55]} 3. c3 {[%clk 0:02:59]}  Nf6 {[%clk 0:02:50]} 4. Bd3 {[%clk 0:02:59]}  d5 {[%clk 0:02:48]} 5. e5 {[%clk 0:03:00]}  Nd7 {[%clk 0:02:48]} 6. Bb5 {[%clk 0:03:00]}  c4 {[%clk 0:02:44]} 7. d4 {[%clk 0:02:59]}  cxd3 {[%clk 0:02:44]} 8. Bf4 {[%clk 0:02:59]}  e6 {[%clk 0:02:42]} 9. Bxd3 {[%clk 0:02:56]}  Nc5 {[%clk 0:02:32]} 10. O-O {[%clk 0:02:52]}  Nxd3 {[%clk 0:02:29]} 11. Qxd3 {[%clk 0:02:52]}  Be7 {[%clk 0:02:29]} 12. Nbd2 {[%clk 0:02:49]}  Bd7 {[%clk 0:02:29]} 13. Rfe1 {[%clk 0:02:48]}  a6 {[%clk 0:02:22]} 14. Nb3 {[%clk 0:02:44]}  Qb6 {[%clk 0:02:17]} 15. Bg5 {[%clk 0:02:33]}  f6 {[%clk 0:02:09]} 16. Bf4 {[%clk 0:02:21]}  O-O {[%clk 0:01:54]} 17. Qd2 {[%clk 0:02:12]}  Rae8 {[%clk 0:01:26]} 18. Nbd4 {[%clk 0:02:04]}  Na5 {[%clk 0:01:25]} 19. b3 {[%clk 0:02:04]}  Nc6 {[%clk 0:01:25]} 20. Bg3 {[%clk 0:01:58]}  f5 {[%clk 0:01:19]} 21. Bf4 {[%clk 0:01:53]}  Rc8 {[%clk 0:01:18]} 22. Rac1 {[%clk 0:01:48]}  Rc7 {[%clk 0:01:07]} 23. h4 {[%clk 0:01:47]}  Rfc8 {[%clk 0:01:06]} 24. Nxf5 {[%clk 0:01:43]}  exf5 {[%clk 0:01:03]} 25. e6 {[%clk 0:01:44]}  Be8 {[%clk 0:01:00]} 26. Bxc7 {[%clk 0:01:41]}  Qxc7 {[%clk 0:00:58]} 27. Qxd5 {[%clk 0:01:41]}  Qf4 {[%clk 0:00:58]} 28. Qd3 {[%clk 0:01:16]}  Bh5 {[%clk 0:00:54]} 29. Nd4 {[%clk 0:01:06]}  Nxd4 {[%clk 0:00:39]} 30. Qxd4 {[%clk 0:01:07]}  Qxh4 {[%clk 0:00:38]} 31. Qd5 {[%clk 0:00:57]}  f4 {[%clk 0:00:36]} 32. Re4 {[%clk 0:00:47]}  Rd8 {[%clk 0:00:32]} 33. Qxb7 {[%clk 0:00:47]}  Qg5 {[%clk 0:00:18]} 34. Rce1 {[%clk 0:00:23]}  Bf3 {[%clk 0:00:17]} 35. g3 {[%clk 0:00:07]}  Qh5 {[%clk 0:00:17]} 0-1